fUST/lending_fUST_20250310
["ID","MTS","AMOUNT","RATE_DAILY","PERIOD"]
[355815046,1741608643247,-500.0,0.000495,10]
[355815047,1741608643257,-500.0,0.000495,10]
[355815048,1741608643266,-500.0,0.000495,10]
[355815049,1741608643276,-505.29873963,0.000495,10]
[355815050,1741608643286,-500.0,0.000495,10]
[355815051,1741608643297,-500.0,0.000495,10]
[355815052,1741608643307,-502.98867695,0.000495,10]
[355815053,1741608643317,-322.64391788,0.000495,10]
[355815054,1741608643328,-527.17970957,0.000495,10]
[355815055,1741608643338,-500.0,0.000495,10]
[355815056,1741608643348,-151.54440811,0.000495,10]
[355815057,1741608643358,-477.44226046,0.000495,7]
[355815058,1741608643368,-502.31626572,0.000495,10]
[355815059,1741608643377,-509.11020358,0.000495,10]
[355815060,1741608643387,-500.0,0.000495,10]
[355815061,1741608643397,-501.86167614,0.0004955,10]
[355815062,1741608643407,-501.64224505,0.0004955,10]
[355815063,1741608643416,-398.0,0.00049656,2]
[355815064,1741608643425,-500.0,0.00049667,99]
[355815065,1741608643435,-4793.36,0.000497,30]
[355815066,1741608643444,-500.0,0.00049767,98]
[355815067,1741608643454,-500.0,0.00049867,92]
[355815068,1741608643464,-500.0,0.00049967,100]
[355815069,1741608643473,-10000.0,0.0005,50]
[355815070,1741608643483,-10000.0,0.0005,48]
[355815071,1741608643494,-1000.0,0.0005,120]
[355815072,1741608643503,-1000.0,0.0005,120]
[355815073,1741608643512,-500.0,0.00050067,96]
[355815074,1741608643522,-500.0,0.00050167,96]
[355815075,1741608643533,-153.88,0.000503,48]
[355815076,1741608643543,-153.88,0.000503,48]
[355815077,1741608643552,-153.88,0.000503,48]
[355815078,1741608643562,-206.02,0.000503,30]
[355815079,1741608643572,-16529.5093269,0.00050888,4]
[355815080,1741608643582,-2087.8,0.00050898,120]
[355815081,1741608643591,-2087.8,0.00050898,120]
[355815082,1741608643601,-2087.8,0.00050898,120]
[355815083,1741608643611,-2087.8,0.00050898,120]
[355815084,1741608643621,-2087.8,0.00050898,120]
[355815085,1741608643631,-2087.8,0.00050898,120]
[355815089,1741608643640,-2087.8,0.00050898,120]
[355815092,1741608643650,-2087.8,0.00050898,120]
[355815095,1741608643660,-2087.8,0.00050898,120]
[355815097,1741608643670,-2087.8,0.00050898,120]
[355815099,1741608643681,-971.95,0.000509,2]
[355815100,1741608643692,-300.0,0.000509,27]
[355815101,1741608643702,-49588.5279806,0.00050948,4]
[355815102,1741608643713,-500.0,0.00050958,120]
[355815103,1741608643723,-500.0,0.00050958,120]
[355815105,1741608643733,-500.0,0.00050958,120]
[355815107,1741608643744,-500.0,0.00050958,120]
[355815110,1741608643753,-500.0,0.00050958,120]
[355815111,1741608643763,-500.0,0.00050958,120]
[355815112,1741608643773,-408.67521279,0.00050958,120]
[355815113,1741608643783,-500.0,0.00050958,120]
[355815114,1741608643793,-500.0,0.00050958,120]
[355815116,1741608643803,-500.0,0.00050958,120]
[355815118,1741608643813,-533.35605914,0.00050958,120]
[355815119,1741608643823,-257.14117174,0.00050958,120]
[355815120,1741608643833,-500.0,0.00050958,120]
[355815121,1741608643843,-500.0,0.00050958,120]
[355815122,1741608643852,-425.55551755,0.00050958,2]
[355815124,1741608643864,-500.0,0.00050958,2]
[355815125,1741608643874,-500.0,0.00050958,120]
[355815126,1741608643883,-370.00599659,0.00050958,120]
[355815127,1741608643894,-628.45491664,0.00050958,120]
[355815128,1741608643904,-500.0,0.00050958,120]
[355815129,1741608643914,-500.0,0.00050958,120]
[355815130,1741608643924,-500.0,0.00050958,120]
[355815131,1741608643935,-500.0,0.00050958,120]
[355815132,1741608643946,-661.05,0.00050958,120]
[355815133,1741608643956,-500.0,0.00050958,120]
[355815134,1741608643967,-500.0,0.00050958,120]
[355815135,1741608643977,-500.0,0.00050958,120]
[355815136,1741608643988,-1789.85,0.00050958,120]
[355815137,1741608643997,-500.0,0.00050958,120]
[355815138,1741608644007,-500.0,0.00050958,120]
[355815139,1741608644017,-500.0,0.00050958,120]
[355815140,1741608644028,-500.0,0.00050958,120]
[355815141,1741608644039,-500.0,0.00050958,120]
[355815142,1741608644048,-500.0,0.00050958,120]
[355815143,1741608644058,-500.0,0.00050958,120]
[355815144,1741608644068,-500.0,0.00050958,120]
[355815145,1741608644079,-500.0,0.00050958,120]
[355815146,1741608644089,-500.0,0.00050958,120]
[355815147,1741608644099,-500.0,0.00050958,120]
[355815148,1741608644108,-500.0,0.00050958,120]
[355815149,1741608644118,-500.0,0.00050958,120]
[355815150,1741608644128,-413.83781407,0.00050958,120]
[355815151,1741608644139,-500.0,0.00050958,120]
[355815152,1741608644149,-500.0,0.00050958,120]
[355815153,1741608644160,-1401.64,0.00050958,120]
[355815154,1741608644170,-500.0,0.00050958,120]
[355815155,1741608644180,-500.0,0.00050958,120]
[355815156,1741608644191,-500.0,0.00050958,120]
[355815157,1741608644202,-500.0,0.00050958,120]
[355815158,1741608644213,-500.0,0.00050958,120]
[355815159,1741608644223,-615.71813403,0.00050958,120]
[355815160,1741608644234,-500.0,0.00050958,120]
[355815161,1741608644244,-500.0,0.00050958,120]
[355815162,1741608644255,-775.39,0.00050958,120]
[355815163,1741608644264,-500.0,0.00050958,120]
[355815164,1741608644274,-500.0,0.00050958,2]
[355815165,1741608644284,-500.0,0.00050958,120]
[355815166,1741608644294,-500.0,0.00050958,120]
[355815167,1741608644304,-500.0,0.00050958,120]
[355815168,1741608644315,-500.0,0.00050958,120]
[355815169,1741608644326,-500.0,0.00050958,15]
[355815171,1741608644336,-25655.27,0.00050958,7]
[355815172,1741608644346,-704.34,0.00050958,120]
[355815174,1741608644356,-1411.84,0.00050958,120]
[355815175,1741608644366,-500.0,0.00050958,120]
[355815177,1741608644375,-519.72,0.00050958,120]
[355815178,1741608644537,-273.92192197,0.00050958,120]
[355815179,1741608644552,-500.0,0.00050958,120]
[355815180,1741608644562,-500.0,0.00050958,120]
[355815181,1741608644572,-1148.55,0.00050958,120]
[355815182,1741608644582,-497.97018318,0.00050958,120]
[355815183,1741608644592,-500.0,0.00050958,120]
[355815184,1741608644602,-500.0,0.00050958,120]
[355815185,1741608644612,-967.69,0.00050958,60]
[355815186,1741608644621,-500.0,0.00050958,120]
[355815187,1741608644632,-533.36,0.00050958,120]
[355815188,1741608644642,-500.0,0.00050958,120]
[355815189,1741608644652,-500.0,0.00050958,120]
[355815190,1741608644662,-500.0,0.00050958,120]
[355815191,1741608644672,-500.0,0.00050958,120]
[355815192,1741608644683,-502.19,0.00050958,120]
[355815193,1741608644692,-666.59,0.00050958,120]
[355815194,1741608644702,-500.0,0.00050958,120]
[355815195,1741608644713,-571.19,0.00050958,120]
[355815196,1741608644723,-500.0,0.00050958,120]
[355815197,1741608644732,-500.0,0.00050958,120]
[355815198,1741608644742,-1286.18,0.00050958,120]
[355815199,1741608644752,-500.0,0.00050958,120]
[355815200,1741608644762,-1736.39,0.00050958,120]
[355815201,1741608644772,-500.0,0.00050958,120]
[355815202,1741608644782,-500.0,0.00050958,120]
[355815203,1741608644792,-500.0,0.00050958,120]
[355815204,1741608644801,-500.0,0.00050958,120]
[355815205,1741608644811,-500.0,0.00050958,7]
[355815206,1741608644821,-500.0,0.00050958,120]
[355815207,1741608644831,-322.27878183,0.00050958,120]
[355815208,1741608644840,-500.0,0.00050958,120]
[355815209,1741608644851,-500.0,0.00050958,120]
[355815210,1741608644864,-520.83,0.00050958,120]
[355815211,1741608644874,-500.0,0.00050958,120]
[355815212,1741608644883,-500.0,0.00050958,120]
[355815213,1741608644894,-562.80589354,0.00050958,120]
[355815214,1741608644903,-2660.17,0.00050958,120]
[355815215,1741608644914,-312.00016368,0.00050958,120]
[355815216,1741608644924,-953.17,0.00050958,120]
[355815217,1741608644935,-500.0,0.00050958,120]
[355815218,1741608644945,-500.0,0.00050958,120]
[355815219,1741608644955,-523.77775152,0.00050958,120]
[355815220,1741608644965,-500.0,0.00050958,120]
[355815221,1741608644975,-515.96046468,0.00050958,120]
[355815222,1741608644985,-500.0,0.00050958,120]
[355815223,1741608644995,-524.67023987,0.00050958,120]
[355815224,1741608645005,-500.0,0.00050958,120]
[355815225,1741608645015,-500.0,0.00050958,120]
[355815226,1741608645025,-500.0,0.00050958,120]
[355815227,1741608645035,-500.0,0.00050958,120]
[355815228,1741608645044,-500.0,0.00050958,120]
[355815229,1741608645055,-500.0,0.00050958,120]
[355815230,1741608645064,-1609.58,0.00050958,120]
[355815231,1741608645074,-235.12675584,0.00050958,120]
[355815232,1741608645084,-535.73715798,0.00050958,120]
[355815233,1741608645094,-2620.89,0.00050958,120]
[355815234,1741608645104,-500.0,0.00050958,120]
[355815235,1741608645113,-1008.54,0.00050958,120]
[355815236,1741608645123,-634.3,0.00050958,120]
[355815237,1741608645133,-500.0,0.00050958,120]
[355815238,1741608645142,-500.0,0.00050958,120]
[355815239,1741608645151,-2201.3,0.00050958,120]
[355815240,1741608645161,-828.69,0.00050958,120]
[355815241,1741608645171,-4462.05,0.00050958,120]
[355815242,1741608645181,-500.0,0.00050958,120]
[355815243,1741608645191,-500.0,0.00050958,120]
[355815244,1741608645200,-500.0,0.00050958,120]
[355815245,1741608645210,-825.04,0.00050958,120]
[355815246,1741608645220,-1579.3,0.00050958,120]
[355815247,1741608645229,-500.0,0.00050958,120]
[355815248,1741608645238,-500.0,0.00050958,120]
[355815249,1741608645248,-500.0,0.00050958,120]
[355815250,1741608645258,-783.28,0.00050958,120]
[355815251,1741608645267,-682.19,0.00050958,120]
[355815252,1741608645277,-1000.0,0.00050958,7]
[355815253,1741608645286,-500.0,0.00050958,120]
[355815254,1741608645295,-500.0,0.00050958,120]
[355815255,1741608645305,-500.0,0.00050958,120]
[355815256,1741608645315,-500.0,0.00050958,120]
[355815257,1741608645325,-500.0,0.00050958,120]
[355815258,1741608645334,-1275.51,0.00050958,120]
[355815259,1741608645343,-648.98,0.00050958,120]
[355815260,1741608645353,-500.0,0.00050958,120]
[355815261,1741608645362,-500.0,0.00050958,120]
[355815262,1741608645372,-500.0,0.00050958,120]
[355815263,1741608645381,-500.0,0.00050958,120]
[355815264,1741608645391,-500.0,0.00050958,120]
[355815265,1741608645401,-1934.53,0.00050958,120]
[355815266,1741608645410,-500.0,0.00050958,120]
[355815267,1741608645420,-1028.4,0.00050958,120]
[355815268,1741608645430,-500.0,0.00050958,120]
[355815269,1741608645440,-676.77,0.00050958,120]
[355815270,1741608645449,-500.0,0.00050958,120]
[355815271,1741608645459,-500.0,0.00050958,120]
[355815272,1741608645469,-500.0,0.00050958,120]
[355815273,1741608645479,-788.58,0.00050958,120]
[355815274,1741608645488,-3576.36,0.00050958,120]
[355815275,1741608645497,-551.56,0.00050958,120]
[355815276,1741608645507,-500.0,0.00050958,120]
[355815277,1741608645516,-416.66666667,0.00050958,7]
[355815278,1741608645526,-2519.57,0.00050958,120]
[355815279,1741608645536,-500.0,0.00050958,120]
[355815280,1741608645545,-500.0,0.00050958,120]
[355815281,1741608645555,-500.0,0.00050958,120]
[355815282,1741608645564,-9999.0,0.00050958,2]
[355815283,1741608645574,-500.0,0.00050958,120]
[355815284,1741608645583,-500.0,0.00050958,120]
[355815285,1741608645593,-500.0,0.00050958,120]
[355815286,1741608645602,-500.0,0.00050958,120]
[355815287,1741608645611,-10000.0,0.00051,53]
[355815288,1741608645621,-1023.35065063,0.00051,120]
[355815289,1741608645631,-242163.0,0.00051037,7]
[355815290,1741608645641,-50000.0,0.00051037,32]
[355815291,1741608645651,-40000.0,0.00051037,31]
[355815292,1741608645660,-17000.0,0.00051037,33]
[355815293,1741608645670,-600.0,0.00051037,35]
[355815294,1741608645679,-148791.25939432,0.00051037,30]
[355815295,1741608645807,-6371.40000002,0.00051037,30]
[355815296,1741608645818,-28648.42098566,0.00051037,30]
[355815297,1741608645828,-548.49,0.00051037,120]
[355815299,1741608645837,-398.0,0.00051037,120]
[355815300,1741608645848,-398.0,0.00051037,120]
[355815301,1741608645859,-398.0,0.00051037,120]
[355815302,1741608645869,-398.0,0.00051037,120]
[355815304,1741608645878,-398.0,0.00051037,120]
[355815305,1741608645888,-398.0,0.00051037,120]
[355815306,1741608645898,-398.0,0.00051037,120]
[355815307,1741608645908,-398.0,0.00051037,120]
[355815308,1741608645917,-398.0,0.00051037,120]
[355815309,1741608645928,-398.0,0.00051037,120]
[355815310,1741608645938,-398.0,0.00051037,120]
[355815311,1741608645948,-160.54363363,0.00051073,10]
[355815312,1741608645958,-503.48654864,0.00051073,10]
[355815313,1741608645967,-611.98482621,0.00051073,10]
[355815314,1741608645976,-8216.62192566,0.000511,2]
[355815315,1741608645987,-153.74,0.000511,30]
[355815316,1741608645996,-1500.0,0.00051171,10]
[355815317,1741608646006,-1500.0,0.00051171,10]
[355815319,1741608646016,-1500.0,0.00051171,10]
[355815320,1741608646026,-115706.565288,0.0005119,4]
[355815321,1741608646036,-1051889.56,0.000512,120]
[355815322,1741608646046,-162.08,0.000512,30]
[355815323,1741608646055,-500.0,0.00051232,120]
[355815324,1741608646066,-500.0,0.00051232,120]
[355815325,1741608646075,-500.0,0.00051232,120]
[355815326,1741608646085,-500.0,0.00051232,120]
[355815327,1741608646095,-500.0,0.00051232,120]
[355815328,1741608646105,-500.0,0.00051232,120]
[355815329,1741608646115,-500.0,0.00051232,120]
[355815330,1741608646125,-500.0,0.00051232,120]
[355815331,1741608646135,-500.0,0.00051232,120]
[355815332,1741608646144,-613.91868884,0.00051232,120]
[355815333,1741608646154,-500.0,0.00051232,120]
[355815334,1741608646164,-500.0,0.00051232,2]
[355815335,1741608646174,-500.0,0.00051232,120]
[355815336,1741608646184,-500.0,0.00051232,120]
[355815337,1741608646195,-500.0,0.00051232,120]
[355815338,1741608646205,-500.0,0.00051232,120]
[355815339,1741608646218,-500.0,0.00051232,120]
[355815340,1741608646228,-661.05,0.00051232,120]
[355815341,1741608646238,-500.0,0.00051232,120]
[355815342,1741608646248,-500.0,0.00051232,120]
[355815343,1741608646257,-500.0,0.00051232,120]
[355815344,1741608646267,-1789.85,0.00051232,120]
[355815345,1741608646276,-500.0,0.00051232,120]
[355815346,1741608646286,-500.0,0.00051232,120]
[355815347,1741608646295,-500.0,0.00051232,120]
[355815348,1741608646305,-500.0,0.00051232,120]
[355815349,1741608646315,-500.0,0.00051232,120]
[355815350,1741608646324,-500.0,0.00051232,120]
[355815351,1741608646334,-500.0,0.00051232,120]
[355815352,1741608646343,-500.0,0.00051232,120]
[355815353,1741608646353,-500.0,0.00051232,120]
[355815354,1741608646363,-500.0,0.00051232,120]
[355815355,1741608646372,-500.0,0.00051232,120]
[355815356,1741608646382,-500.0,0.00051232,120]
[355815357,1741608646391,-500.0,0.00051232,120]
[355815358,1741608646401,-500.0,0.00051232,120]
[355815359,1741608646411,-500.0,0.00051232,120]
[355815360,1741608646421,-1401.64,0.00051232,120]
[355815361,1741608646431,-500.0,0.00051232,120]
[355815362,1741608646441,-500.0,0.00051232,120]
[355815364,1741608646450,-500.0,0.00051232,120]
[355815365,1741608646461,-500.0,0.00051232,120]
[355815366,1741608646471,-500.0,0.00051232,120]
[355815368,1741608646480,-500.0,0.00051232,120]
[355815371,1741608646490,-500.0,0.00051232,120]
[355815373,1741608646499,-775.39,0.00051232,120]
[355815375,1741608646508,-500.0,0.00051232,120]
[355815377,1741608646517,-500.0,0.00051232,2]
[355815378,1741608646526,-500.0,0.00051232,120]
[355815379,1741608646536,-500.0,0.00051232,120]
[355815380,1741608646545,-500.0,0.00051232,120]
[355815381,1741608646554,-500.0,0.00051232,120]
[355815382,1741608646563,-500.0,0.00051232,15]
[355815383,1741608646572,-25655.27,0.00051232,7]
[355815384,1741608646582,-704.34,0.00051232,120]
[355815385,1741608646592,-1411.84,0.00051232,120]
[355815386,1741608646602,-500.0,0.00051232,120]
[355815387,1741608646611,-519.72,0.00051232,120]
[355815388,1741608646621,-500.0,0.00051232,120]
[355815389,1741608646631,-500.0,0.00051232,120]
[355815390,1741608646640,-1148.55,0.00051232,120]
[355815391,1741608646650,-500.0,0.00051232,120]
[355815392,1741608646660,-500.0,0.00051232,120]
[355815393,1741608646670,-967.69,0.00051232,60]
[355815394,1741608646680,-500.0,0.00051232,120]
[355815395,1741608646689,-533.36,0.00051232,120]
[355815396,1741608646699,-500.0,0.00051232,120]
[355815397,1741608646708,-500.0,0.00051232,120]
[355815398,1741608646720,-500.0,0.00051232,120]
[355815399,1741608646729,-502.19,0.00051232,120]
[355815400,1741608646738,-666.59,0.00051232,120]
[355815401,1741608646748,-500.0,0.00051232,120]
[355815402,1741608646757,-571.19,0.00051232,120]
[355815403,1741608646767,-500.0,0.00051232,120]
[355815404,1741608646777,-500.0,0.00051232,120]
[355815405,1741608646786,-1286.18,0.00051232,120]
[355815406,1741608646796,-500.0,0.00051232,120]
[355815407,1741608646806,-1736.39,0.00051232,120]
[355815408,1741608646815,-500.0,0.00051232,120]
[355815409,1741608646825,-497.93470815,0.00051232,120]
[355815410,1741608646835,-500.0,0.00051232,120]
[355815411,1741608646845,-500.0,0.00051232,120]
[355815412,1741608646855,-500.0,0.00051232,7]
[355815413,1741608646866,-500.0,0.00051232,120]
[355815414,1741608646876,-500.0,0.00051232,120]
[355815415,1741608646886,-500.0,0.00051232,120]
[355815416,1741608646895,-520.83,0.00051232,120]
[355815417,1741608646905,-500.0,0.00051232,120]
[355815418,1741608646915,-500.0,0.00051232,120]
[355815419,1741608646924,-2660.17,0.00051232,120]
[355815420,1741608646975,-953.17,0.00051232,120]
[355815421,1741608646985,-500.0,0.00051232,120]
[355815422,1741608646995,-364.93293037,0.00051232,120]
[355815423,1741608647005,-500.0,0.00051232,120]
[355815424,1741608647015,-500.0,0.00051232,120]
[355815425,1741608647026,-500.0,0.00051232,120]
[355815426,1741608647036,-198.04035966,0.00051232,120]
[355815427,1741608647046,-500.0,0.00051232,120]
[355815428,1741608647055,-500.0,0.00051232,120]
[355815429,1741608647065,-500.0,0.00051232,120]
[355815430,1741608647075,-500.0,0.00051232,120]
[355815431,1741608647085,-1609.58,0.00051232,120]
[355815432,1741608647096,-2620.89,0.00051232,120]
[355815433,1741608647106,-500.0,0.00051232,120]
[355815434,1741608647116,-1008.54,0.00051232,120]
[355815435,1741608647126,-634.3,0.00051232,120]
[355815436,1741608647135,-500.0,0.00051232,120]
[355815437,1741608647145,-500.0,0.00051232,120]
[355815438,1741608647155,-2201.3,0.00051232,120]
[355815439,1741608647165,-828.69,0.00051232,120]
[355815440,1741608647176,-4462.05,0.00051232,120]
[355815441,1741608647186,-500.0,0.00051232,120]
[355815442,1741608647196,-500.0,0.00051232,120]
[355815443,1741608647206,-500.0,0.00051232,120]
[355815444,1741608647220,-825.04,0.00051232,120]
[355815445,1741608647230,-1579.3,0.00051232,120]
[355815446,1741608647248,-500.0,0.00051232,120]
[355815447,1741608647261,-500.0,0.00051232,120]
[355815448,1741608647271,-500.0,0.00051232,120]
[355815449,1741608647280,-783.28,0.00051232,120]
[355815450,1741608647290,-682.19,0.00051232,120]
[355815451,1741608647299,-1000.0,0.00051232,7]
[355815452,1741608647309,-500.0,0.00051232,120]
[355815453,1741608647318,-500.0,0.00051232,120]
[355815454,1741608647328,-500.0,0.00051232,120]
[355815455,1741608647337,-500.0,0.00051232,120]
[355815456,1741608647346,-500.0,0.00051232,120]
[355815457,1741608647355,-1275.51,0.00051232,120]
[355815458,1741608647365,-648.98,0.00051232,120]
[355815459,1741608647375,-500.0,0.00051232,120]
[355815460,1741608647385,-500.0,0.00051232,120]
[355815461,1741608647394,-500.0,0.00051232,120]
[355815462,1741608647404,-500.0,0.00051232,120]
[355815463,1741608647413,-500.0,0.00051232,120]
[355815464,1741608647422,-1934.53,0.00051232,120]
[355815465,1741608647432,-625.54517005,0.00051232,120]
[355815466,1741608647441,-1028.4,0.00051232,120]
[355815467,1741608647451,-500.0,0.00051232,120]
[355815468,1741608647461,-676.77,0.00051232,120]
[355815469,1741608647471,-500.0,0.00051232,120]
[355815470,1741608647480,-500.0,0.00051232,120]
[355815471,1741608647489,-500.0,0.00051232,120]
[355815472,1741608647499,-788.58,0.00051232,120]
[355815473,1741608647509,-3576.36,0.00051232,120]
[355815474,1741608647519,-551.56,0.00051232,120]
[355815475,1741608647529,-500.0,0.00051232,120]
[355815476,1741608647538,-2519.57,0.00051232,120]
[355815477,1741608647548,-500.0,0.00051232,120]
[355815478,1741608647557,-500.0,0.00051232,120]
[355815479,1741608647566,-500.0,0.00051232,120]
[355815480,1741608647576,-9999.0,0.00051232,2]
[355815481,1741608647587,-500.0,0.00051232,120]
[355815482,1741608647596,-283.86,0.00051232,120]
[355815483,1741608647606,-500.0,0.00051232,120]
[355815484,1741608647616,-500.0,0.00051232,120]
[355815485,1741608647626,-150.0,0.00051273,2]
[355815486,1741608647636,-500.0,0.00051506,120]
[355815487,1741608647645,-500.0,0.00051506,120]
[355815488,1741608647655,-500.0,0.00051506,120]
[355815489,1741608647664,-500.0,0.00051506,120]
[355815490,1741608647673,-500.0,0.00051506,120]
[355815491,1741608647683,-500.0,0.00051506,120]
[355815492,1741608647693,-389.31139489,0.00051506,120]
[355815493,1741608647703,-500.0,0.00051506,120]
[355815494,1741608647715,-500.0,0.00051506,120]
[355815495,1741608647724,-500.0,0.00051506,120]
[355815496,1741608647734,-500.0,0.00051506,2]
[355815497,1741608647743,-500.0,0.00051506,120]
[355815498,1741608647752,-500.0,0.00051506,120]
[355815499,1741608647761,-500.0,0.00051506,120]
[355815500,1741608647770,-500.0,0.00051506,120]
[355815501,1741608647779,-500.0,0.00051506,120]
[355815502,1741608647789,-661.05,0.00051506,120]
[355815503,1741608647798,-500.0,0.00051506,120]
[355815504,1741608647807,-500.0,0.00051506,120]
[355815505,1741608647817,-500.0,0.00051506,120]
[355815506,1741608647826,-1789.85,0.00051506,120]
[355815507,1741608647835,-500.0,0.00051506,120]
[355815508,1741608647844,-500.0,0.00051506,120]
[355815509,1741608647854,-500.0,0.00051506,120]
[355815510,1741608647865,-500.0,0.00051506,120]
[355815511,1741608647875,-500.0,0.00051506,120]
[355815512,1741608647884,-500.0,0.00051506,120]
[355815513,1741608647894,-500.0,0.00051506,120]
[355815514,1741608647904,-500.0,0.00051506,120]
[355815515,1741608647913,-542.90298564,0.00051506,120]
[355815516,1741608647923,-500.0,0.00051506,120]
[355815517,1741608647934,-500.0,0.00051506,120]
[355815518,1741608647944,-500.0,0.00051506,120]
[355815519,1741608647954,-500.0,0.00051506,120]
[355815520,1741608647965,-500.0,0.00051506,120]
[355815521,1741608647975,-500.0,0.00051506,120]
[355815522,1741608647985,-1401.64,0.00051506,120]
[355815523,1741608647994,-500.0,0.00051506,120]
[355815524,1741608648004,-500.0,0.00051506,120]
[355815525,1741608648013,-500.0,0.00051506,120]
[355815526,1741608648025,-500.0,0.00051506,120]
[355815527,1741608648035,-500.0,0.00051506,120]
[355815528,1741608648045,-500.0,0.00051506,120]
[355815529,1741608648055,-500.0,0.00051506,120]
[355815530,1741608648065,-775.39,0.00051506,120]
[355815531,1741608648075,-500.0,0.00051506,2]
[355815532,1741608648085,-500.0,0.00051506,120]
[355815533,1741608648095,-500.0,0.00051506,120]
[355815534,1741608648105,-500.0,0.00051506,120]
[355815535,1741608648115,-500.0,0.00051506,120]
[355815536,1741608648125,-500.0,0.00051506,120]
[355815537,1741608648136,-500.0,0.00051506,15]
[355815538,1741608648146,-25655.27,0.00051506,7]
[355815539,1741608648155,-704.34,0.00051506,120]
[355815540,1741608648166,-1411.84,0.00051506,120]
[355815541,1741608648176,-500.0,0.00051506,120]
[355815542,1741608648186,-519.72,0.00051506,120]
[355815543,1741608648197,-500.0,0.00051506,120]
[355815544,1741608648207,-500.0,0.00051506,120]
[355815545,1741608648218,-1148.55,0.00051506,120]
[355815546,1741608648228,-500.0,0.00051506,120]
[355815547,1741608648237,-500.0,0.00051506,120]
[355815548,1741608648247,-967.69,0.00051506,60]
[355815549,1741608648257,-500.0,0.00051506,120]
[355815550,1741608648266,-533.36,0.00051506,120]
[355815551,1741608648276,-500.0,0.00051506,120]
[355815552,1741608648285,-500.0,0.00051506,120]
[355815553,1741608648295,-500.0,0.00051506,120]
[355815554,1741608648305,-502.19,0.00051506,120]
[355815555,1741608648315,-666.59,0.00051506,120]
[355815556,1741608648325,-500.0,0.00051506,120]
[355815557,1741608648335,-571.19,0.00051506,120]
[355815558,1741608648344,-500.0,0.00051506,120]
[355815559,1741608648353,-500.0,0.00051506,120]
[355815560,1741608648363,-1286.18,0.00051506,120]
[355815561,1741608648373,-500.0,0.00051506,120]
[355815562,1741608648383,-1736.39,0.00051506,120]
[355815563,1741608648393,-500.0,0.00051506,120]
[355815564,1741608648403,-500.0,0.00051506,120]
[355815565,1741608648412,-500.0,0.00051506,120]
[355815566,1741608648423,-500.0,0.00051506,7]
[355815567,1741608648433,-500.0,0.00051506,120]
[355815568,1741608648443,-500.0,0.00051506,120]
[355815569,1741608648453,-500.0,0.00051506,120]
[355815570,1741608648465,-520.83,0.00051506,120]
[355815571,1741608648475,-500.0,0.00051506,120]
[355815572,1741608648485,-2660.17,0.00051506,120]
[355815573,1741608648495,-953.17,0.00051506,120]
[355815574,1741608648505,-202.89156633,0.00051506,120]